Workbook

Sheet Sheet1
A1: Additional file 2 for Wojtusiak et al., Computational Barthel Index: An Automated Tool for Assessing and Predicting Activities of Daily Living Among Nursing Home Patients
A2: Models | C2: Time | D2: Current Assessment | I2: 3 Month Prediction | N2: 6 Month Prediction | S2: 12 Month Prediction
C3: Performance | D3: Accuracy | E3: AUC | F3: Precision | G3: Recall | H3: F-1 Score | I3: Accuracy | J3: AUC | K3: Precision | L3: Recall | M3: F-1 Score | N3: Accuracy | O3: AUC | P3: Precision | Q3: Recall | R3: F-1 Score | S3: Accuracy | T3: AUC | U3: Precision | V3: Recall | W3: F-1 Score
C4: Disability
A5: Re-Evaluation Models | B5: Full | C5: Bathing | D5: 0.912 | E5: 0.951 | F5: 0.9278 | G5: 0.9563 | H5: =2*(G5*F5)/(F5+G5) -> 0.9418344462 | I5: 0.8401 | J5: 0.8857 | K5: 0.8728 | L5: 0.9249 | M5: =2*(K5*L5)/(K5+L5) -> 0.8980950325 | N5: 0.7962 | O5: 0.8293 | P5: 0.812 | Q5: 0.9447 | R5: =2*(P5*Q5)/(P5+Q5) -> 0.8733379632 | S5: 0.7682 | T5: 0.7946 | U5: 0.7911 | V5: 0.9242 | W5: =2*(U5*V5)/(U5+V5) -> 0.8524860024
C6: Grooming | D6: 0.896 | E6: 0.9491 | F6: 0.9115 | G6: 0.9256 | H6: =2*(G6*F6)/(F6+G6) -> 0.9184958903 | I6: 0.8012 | J6: 0.875 | K6: 0.8378 | L6: 0.8605 | M6: =2*(K6*L6)/(K6+L6) -> 0.8489982924 | N6: 0.7387 | O6: 0.8129 | P6: 0.7705 | Q6: 0.8162 | R6: =2*(P6*Q6)/(P6+Q6) -> 0.7926918762 | S6: 0.7121 | T6: 0.7781 | U6: 0.7602 | V6: 0.7631 | W6: =2*(U6*V6)/(U6+V6) -> 0.7616472395
C7: Eating | D7: 0.8932 | E7: 0.9377 | F7: 0.8995 | G7: 0.8775 | H7: 0.8883638154 | I7: 0.7942 | J7: 0.8588 | K7: 0.8311 | L7: 0.7367 | M7: 0.7810580048 | N7: 0.7292 | O7: 0.7879 | P7: 0.7684 | Q7: 0.5869 | R7: 0.6654968789 | S7: 0.7042 | T7: 0.7571 | U7: 0.6669 | V7: 0.5746 | W7: 0.6173189529
C8: Toileting | D8: 0.8999 | E8: 0.9549 | F8: 0.9155 | G8: 0.9216 | H8: 0.9185398726 | I8: 0.8046 | J8: 0.882 | K8: 0.8449 | L8: 0.8454 | M8: 0.845149926 | N8: 0.7375 | O8: 0.8132 | P8: 0.7837 | Q8: 0.7867 | R8: 0.7851971345 | S8: 0.7138 | T8: 0.7853 | U8: 0.7444 | V8: 0.8164 | W8: 0.7787393132
C9: Dressing | D9: 0.9007 | E9: 0.9525 | F9: 0.917 | G9: 0.9352 | H9: 0.926010582 | I9: 0.8134 | J9: 0.8873 | K9: 0.854 | L9: 0.8777 | M9: 0.8656878212 | N9: 0.7506 | O9: 0.8144 | P9: 0.8092 | Q9: 0.8222 | R9: 0.815648204 | S9: 0.7273 | T9: 0.7918 | U9: 0.7568 | V9: 0.8603 | W9: 0.8052378208
C10: Bowels | D10: 0.9019 | E10: 0.9481 | F10: 0.9026 | G10: 0.8581 | H10: 0.8797876526 | I10: 0.8266 | J10: 0.8726 | K10: 0.8616 | L10: 0.6924 | M10: =2*(K10*L10)/(K10+L10) -> 0.7677887259 | N10: 0.7792 | O10: 0.7969 | P10: 0.7692 | Q10: 0.5241 | R10: 0.623424913 | S10: 0.7577 | T10: 0.7492 | U10: 0.7052 | V10: 0.381 | W10: 0.4947177315
C11: Bladder | D11: 0.8961 | E11: 0.9356 | F11: 0.8934 | G11: 0.843 | H11: 0.8674685556 | I11: 0.822 | J11: 0.8613 | K11: 0.8524 | L11: 0.679 | M11: 0.7558829829 | N11: 0.7694 | O11: 0.7896 | P11: 0.7328 | Q11: 0.5073 | R11: 0.5995475204 | S11: 0.7521 | T11: 0.7314 | U11: 0.679 | V11: 0.3426 | W11: 0.4554138606
C12: Transferring | D12: 0.8918 | E12: 0.951 | F12: 0.8997 | G12: 0.8937 | H12: =2*(G12*F12)/(F12+G12) -> 0.8966899632 | I12: 0.7906 | J12: 0.8761 | K12: 0.8156 | L12: 0.8041 | M12: 0.8098091745 | N12: 0.7296 | O12: 0.8031 | P12: 0.7793 | Q12: 0.71 | R12: 0.7430376687 | S12: 0.6989 | T12: 0.7733 | U12: 0.7662 | V12: 0.6648 | W12: 0.7119074214
C13: Walking | D13: 0.9118 | E13: 0.9462 | F13: 0.9236 | G13: 0.9592 | H13: 0.9410634374 | I13: 0.8474 | J13: 0.8907 | K13: 0.8762 | L13: 0.9305 | M13: 0.9025340123 | N13: 0.8056 | O13: 0.8258 | P13: 0.8309 | Q13: 0.9354 | R13: 0.8800587216 | S13: 0.8031 | T13: 0.792 | U13: 0.8152 | V13: 0.966 | W13: 0.8842164833
C14: Average | D14: 0.9004 | E14: 0.9473 | F14: 0.9101 | G14: 0.9078 | H14: =AVERAGE(H5:H13) -> 0.9086949128 | I14: 0.8155 | J14: 0.8766 | K14: 0.8496 | L14: 0.8168 | M14: =AVERAGE(M5:M13) -> 0.830555997 | N14: 0.7596 | O14: 0.8081 | P14: 0.784 | Q14: 0.7371 | R14: =AVERAGE(R5:R13) -> 0.7531600978 | S14: 0.7375 | T14: 0.7725 | U14: 0.7428 | V14: 0.6992 | W14: =AVERAGE(W5:W13) -> 0.7068538695
C15: STD | D15: 0.0073 | E15: 0.0066 | F15: 0.0119 | G15: 0.0419 | H15: =_xlfn.STDEV.S(H5:H13) -> 0.02676630205 | I15: 0.02 | J15: 0.0112 | K15: 0.0196 | L15: 0.0949 | M15: =_xlfn.STDEV.S(M5:M13) -> 0.05468771953 | N15: 0.0291 | O15: 0.0148 | P15: 0.0294 | Q15: 0.1658 | R15: =_xlfn.STDEV.S(R5:R13) -> 0.1032322759 | S15: 0.035 | T15: 0.0221 | U15: 0.0498 | V15: 0.2266 | W15: =_xlfn.STDEV.S(W5:W13) -> 0.1527994216
B16: Simplified | C16: Bathing | D16: 0.9163 | E16: 0.9539 | F16: 0.9335 | G16: 0.9556 | H16: 0.9444207294 | I16: 0.8435 | J16: 0.8889 | K16: 0.8828 | L16: 0.9163 | M16: 0.8992381079 | N16: 0.7956 | O16: 0.8326 | P16: 0.8209 | Q16: 0.9275 | R16: 0.8709502974 | S16: 0.7769 | T16: 0.7958 | U16: 0.8026 | V16: 0.918 | W16: 0.8564300825
C17: Grooming | D17: 0.9019 | E17: 0.9516 | F17: 0.9193 | G17: 0.9264 | H17: 0.9228363439 | I17: 0.8042 | J17: 0.8785 | K17: 0.8467 | L17: 0.8531 | M17: 0.8498879515 | N17: 0.7398 | O17: 0.8162 | P17: 0.8103 | Q17: 0.7505 | R17: 0.7792544208 | S17: 0.7121 | T17: 0.7801 | U17: 0.761 | V17: 0.7617 | W17: 0.7613498391
C18: Eating | D18: 0.8975 | E18: 0.9409 | F18: 0.9042 | G18: 0.8816 | H18: 0.8927569941 | I18: 0.802 | J18: 0.8609 | K18: 0.8588 | L18: 0.7213 | M18: 0.7840673881 | N18: 0.7272 | O18: 0.7894 | P18: 0.7838 | Q18: 0.5601 | R18: 0.6533319146 | S18: 0.7025 | T18: 0.7544 | U18: 0.7049 | V18: 0.4878 | W18: 0.5765912971
C19: Toileting | D19: 0.9031 | E19: 0.9569 | F19: 0.9186 | G19: 0.9235 | H19: 0.921043483 | I19: 0.8061 | J19: 0.8834 | K19: 0.8508 | L19: 0.84 | M19: 0.8453655075 | N19: 0.74 | O19: 0.8181 | P19: 0.7879 | Q19: 0.7849 | R19: 0.7863971389 | S19: 0.7101 | T19: 0.7842 | U19: 0.7722 | V19: 0.7521 | W19: 0.7620174769
C20: Dressing | D20: 0.9052 | E20: 0.955 | F20: 0.9202 | G20: 0.9388 | H20: 0.92940695 | I20: 0.8167 | J20: 0.8884 | K20: 0.8537 | L20: 0.8839 | M20: 0.8685375576 | N20: 0.7559 | O20: 0.8168 | P20: 0.8048 | Q20: 0.8401 | R20: 0.8220712262 | S20: 0.7349 | T20: 0.7902 | U20: 0.7708 | V20: 0.8474 | W20: 0.8072870103
C21: Bowels | D21: 0.9068 | E21: 0.9503 | F21: 0.9124 | G21: 0.8598 | H21: 0.8853193996 | I21: 0.8317 | J21: 0.8775 | K21: 0.8653 | L21: 0.7031 | M21: 0.7758128411 | N21: 0.7808 | O21: 0.8 | P21: 0.7983 | Q21: 0.4969 | R21: 0.6125313002 | S21: 0.7594 | T21: 0.7501 | U21: 0.7124 | V21: 0.381 | W21: 0.4964777757
C22: Bladder | D22: 0.8997 | E22: 0.9385 | F22: 0.8851 | G22: 0.8636 | H22: 0.8742178304 | I22: 0.8287 | J22: 0.8655 | K22: 0.8401 | L22: 0.7135 | M22: 0.7716417997 | N22: 0.7763 | O22: 0.7946 | P22: 0.7438 | Q22: 0.5224 | R22: 0.613743674 | S22: 0.7572 | T22: 0.7411 | U22: 0.7015 | V22: 0.3436 | W22: 0.4612676299
C23: Transferring | D23: 0.895 | E23: 0.9531 | F23: 0.9094 | G23: 0.8887 | H23: 0.8989308492 | I23: 0.7985 | J23: 0.8781 | K23: 0.8591 | L23: 0.7614 | M23: 0.8073048318 | N23: 0.7243 | O23: 0.8047 | P23: 0.7892 | Q23: 0.6812 | R23: 0.7312337323 | S23: 0.7014 | T23: 0.7757 | U23: 0.7574 | V23: 0.6865 | W23: 0.7202092943
C24: Walking | D24: 0.9179 | E24: 0.9499 | F24: 0.9346 | G24: 0.955 | H24: 0.9446898815 | I24: 0.8493 | J24: 0.8936 | K24: 0.8845 | L24: 0.9218 | M24: 0.9027648785 | N24: 0.8029 | O24: 0.8253 | P24: 0.8291 | Q24: 0.934 | R24: 0.8784293574 | S24: 0.802 | T24: 0.7967 | U24: 0.8148 | V24: 0.9649 | W24: 0.8835202787
C25: Average | D25: 0.9048 | E25: 0.95 | F25: 0.9153 | G25: 0.9103 | H25: =AVERAGE(H16:H24) -> 0.9126247179 | I25: 0.8201 | J25: 0.8794 | K25: 0.8602 | L25: 0.8127 | M25: =AVERAGE(M16:M24) -> 0.8338467626 | N25: 0.7603 | O25: 0.8109 | P25: 0.7965 | Q25: 0.722 | R25: =AVERAGE(R16:R24) -> 0.7497714513 | S25: 0.7396 | T25: 0.7743 | U25: 0.7553 | V25: 0.6825 | W25: =AVERAGE(W16:W24) -> 0.7027945205
C26: STD | D26: 0.0079 | E26: 0.0063 | F26: 0.0151 | G26: 0.0376 | H26: =_xlfn.STDEV.S(H16:H24) -> 0.02573634394 | I26: 0.0189 | J26: 0.0108 | K26: 0.0152 | L26: 0.0887 | M26: =_xlfn.STDEV.S(M16:M24) -> 0.05128235672 | N26: 0.0295 | O26: 0.0145 | P26: 0.025 | Q26: 0.1674 | R26: =_xlfn.STDEV.S(R16:R24) -> 0.1034756976 | S26: 0.0362 | T26: 0.0207 | U26: 0.0413 | V26: 0.2284 | W26: =_xlfn.STDEV.S(W16:W24) -> 0.1546175992
A27: Evaluation Models | B27: Full | C27: Bathing | D27: 0.7924 | E27: 0.7996 | F27: 0.815 | G27: 0.933 | H27: 0.8700171625 | I27: 0.7879 | J27: 0.7617 | K27: 0.8091 | L27: 0.9446 | M27: 0.871615282 | N27: 0.776 | O27: 0.765 | P27: 0.7903 | Q27: 0.9512 | R27: 0.8633170945 | S27: 0.7594 | T27: 0.751 | U27: 0.7772 | V27: 0.9367 | W27: 0.8495282572
C28: Grooming | D28: 0.7438 | E28: 0.8001 | F28: 0.7625 | G28: 0.8647 | H28: 0.8103905482 | I28: 0.7182 | J28: 0.7577 | K28: 0.7372 | L28: 0.8798 | M28: 0.8022121954 | N28: 0.7056 | O28: 0.7512 | P28: 0.7176 | Q28: 0.8554 | R28: 0.7804641322 | S28: 0.6918 | T28: 0.732 | U28: 0.7185 | V28: 0.8037 | W28: 0.758715609
C29: Eating | D29: 0.7015 | E29: 0.7746 | F29: 0.6915 | G29: 0.6918 | H29: 0.6916499675 | I29: 0.6858 | J29: 0.7536 | K29: 0.6864 | L29: 0.68 | M29: 0.6831850117 | N29: 0.6766 | O29: 0.7325 | P29: 0.6981 | Q29: 0.5204 | R29: 0.5962925564 | S29: 0.6851 | T29: 0.7199 | U29: 0.6424 | V29: 0.5448 | W29: 0.5895881402
C30: Toileting | D30: 0.7373 | E30: 0.8012 | F30: 0.7499 | G30: 0.8566 | H30: 0.7997066169 | I30: 0.7152 | J30: 0.7661 | K30: 0.7389 | L30: 0.8485 | M30: 0.7899164042 | N30: 0.6953 | O30: 0.7496 | P30: 0.719 | Q30: 0.8215 | R30: 0.766839987 | S30: 0.6944 | T30: 0.7341 | U30: 0.7132 | V30: 0.8438 | W30: 0.7730226846
C31: Dressing | D31: 0.7531 | E31: 0.8006 | F31: 0.7718 | G31: 0.8924 | H31: 0.8277302247 | I31: 0.7431 | J31: 0.7643 | K31: 0.7611 | L31: 0.9108 | M31: 0.8292480172 | N31: 0.7299 | O31: 0.7449 | P31: 0.7391 | Q31: 0.9234 | R31: 0.8210345143 | S31: 0.7127 | T31: 0.7398 | U31: 0.728 | V31: 0.8964 | W31: 0.8034710662
C32: Bowels | D32: 0.743 | E32: 0.8123 | F32: 0.7085 | G32: 0.655 | H32: 0.6807004034 | I32: 0.7135 | J32: 0.7743 | K32: 0.6913 | L32: 0.5567 | M32: 0.6167415224 | N32: 0.7238 | O32: 0.7496 | P32: 0.6739 | Q32: 0.4026 | R32: 0.5040634278 | S32: 0.7223 | T32: 0.7109 | U32: 0.6096 | V32: 0.2995 | W32: 0.4016614234
C33: Bladder | D33: 0.7259 | E33: 0.789 | F33: 0.6845 | G33: 0.5947 | H33: 0.6364480144 | I33: 0.7054 | J33: 0.7559 | K33: 0.6745 | L33: 0.5294 | M33: 0.5932059141 | N33: 0.7238 | O33: 0.7415 | P33: 0.6749 | Q33: 0.3631 | R33: 0.4721699229 | S33: 0.722 | T33: 0.6965 | U33: 0.5838 | V33: 0.2821 | W33: 0.3803902991
C34: Transferring | D34: 0.7166 | E34: 0.7942 | F34: 0.7141 | G34: 0.7685 | H34: 0.7403019695 | I34: 0.692 | J34: 0.7601 | K34: 0.7095 | L34: 0.7527 | M34: =2*(K34*L34)/(K34+L34) -> 0.7304618383 | N34: 0.6744 | O34: 0.7363 | P34: 0.6844 | Q34: 0.7587 | R34: 0.7196372809 | S34: 0.6656 | T34: 0.7205 | U34: 0.6885 | V34: 0.7353 | W34: 0.711130847
C35: Walking | D35: 0.7813 | E35: 0.7865 | F35: 0.7945 | G35: 0.9473 | H35: 0.8641977839 | I35: 0.7833 | J35: 0.7633 | K35: 0.8042 | L35: 0.9446 | M35: =2*(K35*L35)/(K35+L35) -> 0.8687640897 | N35: 0.7819 | O35: 0.7483 | P35: 0.7922 | Q35: 0.9677 | R35: 0.8711994318 | S35: 0.7932 | T35: 0.7243 | U35: 0.8029 | V35: 0.9732 | W35: 0.8798854569
C36: Average | D36: 0.7439 | E36: 0.7953 | F36: 0.7436 | G36: 0.8004 | H36: =AVERAGE(H27:H35) -> 0.7690158545 | I36: 0.7272 | J36: 0.7619 | K36: 0.7347 | L36: 0.783 | M36: =AVERAGE(M27:M35) -> 0.7539278083 | N36: 0.7208 | O36: 0.7465 | P36: 0.7211 | Q36: 0.7293 | R36: =AVERAGE(R27:R35) -> 0.7105575942 | S36: 0.7163 | T36: 0.7254 | U36: 0.696 | V36: 0.7017 | W36: =AVERAGE(W27:W35) -> 0.6830437537
C37: STD | D37: 0.029 | E37: 0.0108 | F37: 0.0464 | G37: 0.128 | H37: =_xlfn.STDEV.S(H27:H35) -> 0.08481291776 | I37: 0.037 | J37: 0.0061 | K37: 0.0494 | L37: 0.1617 | M37: =_xlfn.STDEV.S(M27:M36) -> 0.09806132279 | N37: 0.0385 | O37: 0.0095 | P37: 0.0453 | Q37: 0.2381 | R37: =_xlfn.STDEV.S(R27:R35) -> 0.150834557 | S37: 0.0395 | T37: 0.0161 | U37: 0.0732 | V37: 0.2648 | W37: =_xlfn.STDEV.S(W27:W35) -> 0.1854342495
B38: Simplified | C38: Bathing | D38: 0.7925 | E38: 0.7988 | F38: 0.8126 | G38: 0.9376 | H38: 0.8706362244 | I38: 0.79 | J38: 0.7671 | K38: 0.8207 | L38: 0.9269 | M38: 0.8705731632 | N38: 0.7768 | O38: 0.7631 | P38: 0.7853 | Q38: 0.9631 | R38: 0.8651594944 | S38: 0.7569 | T38: 0.7502 | U38: 0.7692 | V38: 0.9495 | W38: 0.849892826
C39: Grooming | D39: 0.741 | E39: 0.7983 | F39: 0.7706 | G39: 0.8413 | H39: 0.8043995037 | I39: 0.7204 | J39: 0.7555 | K39: 0.7527 | L39: 0.8483 | M39: 0.7976457339 | N39: 0.7046 | O39: 0.747 | P39: 0.7222 | Q39: 0.8406 | R39: 0.7769149219 | S39: 0.6885 | T39: 0.7329 | U39: 0.7242 | V39: 0.7804 | W39: 0.7512504054
C40: Eating | D40: 0.7031 | E40: 0.7747 | F40: 0.6891 | G40: 0.7043 | H40: 0.6966170949 | I40: 0.6809 | J40: 0.7473 | K40: 0.6971 | L40: 0.6359 | M40: 0.6650951088 | N40: 0.6747 | O40: 0.7295 | P40: 0.6528 | Q40: 0.6222 | R40: 0.6371328 | S40: 0.6851 | T40: 0.7227 | U40: 0.6572 | V40: 0.5047 | W40: 0.5709421465
C41: Toileting | D41: 0.7372 | E41: 0.8007 | F41: 0.7485 | G41: 0.8596 | H41: 0.8002121759 | I41: 0.7145 | J41: 0.7576 | K41: 0.7407 | L41: 0.8425 | M41: 0.7883271223 | N41: 0.6954 | O41: 0.7472 | P41: 0.7055 | Q41: 0.8593 | R41: 0.774841705 | S41: 0.6961 | T41: 0.7358 | U41: 0.7154 | V41: 0.8425 | W41: 0.7737653251
C42: Dressing | D42: 0.7524 | E42: 0.7996 | F42: 0.7737 | G42: 0.8869 | H42: 0.8264416837 | I42: 0.7421 | J42: 0.7592 | K42: 0.7599 | L42: 0.9117 | M42: 0.82890743 | N42: 0.7274 | O42: 0.7467 | P42: 0.7476 | Q42: 0.8965 | R42: 0.8153073414 | S42: 0.7138 | T42: 0.7357 | U42: 0.7268 | V42: 0.9024 | W42: 0.805136656
C43: Bowels | D43: 0.7407 | E43: 0.8115 | F43: 0.6992 | G43: 0.6671 | H43: 0.6827729196 | I43: 0.7087 | J43: 0.7717 | K43: 0.7057 | L43: 0.509 | M43: 0.5914238907 | N43: 0.723 | O43: 0.7473 | P43: 0.6729 | Q43: 0.3999 | R43: 0.5016642617 | S43: 0.7169 | T43: 0.7079 | U43: 0.6064 | V43: 0.2579 | W43: 0.3618895291
C44: Bladder | D44: 0.7251 | E44: 0.7882 | F44: 0.6799 | G44: 0.6022 | H44: 0.6386955464 | I44: 0.6982 | J44: 0.7536 | K44: 0.6621 | L44: 0.5229 | M44: 0.5843242025 | N44: 0.7177 | O44: 0.7403 | P44: 0.6515 | Q44: 0.3663 | R44: 0.4689417371 | S44: 0.718 | T44: 0.6956 | U44: 0.6205 | V44: 0.175 | W44: 0.2730043997
C45: Transferring | D45: 0.7172 | E45: 0.7928 | F45: 0.7265 | G45: 0.7409 | H45: 0.7336293444 | I45: 0.6787 | J45: 0.7489 | K45: 0.7146 | L45: 0.7 | M45: 0.7072246571 | N45: 0.666 | O45: 0.737 | P45: 0.6611 | Q45: 0.8074 | R45: 0.726962397 | S45: 0.6662 | T45: 0.7212 | U45: 0.6902 | V45: 0.7323 | W45: 0.7106270088
C46: Walking | D46: 0.7819 | E46: 0.7859 | F46: 0.8007 | G46: 0.936 | H46: 0.8630796338 | I46: 0.7843 | J46: 0.7549 | K46: 0.806 | L46: 0.9428 | M46: 0.8690494053 | N46: 0.781 | O46: 0.7486 | P46: 0.7881 | Q46: 0.9749 | R46: 0.8716037323 | S46: 0.7952 | T46: 0.7282 | U46: 0.801 | V46: 0.9805 | W46: 0.8817069885
C47: Average | D47: 0.7434 | E47: 0.7945 | F47: 0.7445 | G47: 0.7973 | H47: =AVERAGE(H38:H46) -> 0.7684982363 | I47: 0.7242 | J47: 0.7573 | K47: 0.74 | L47: 0.76 | M47: =AVERAGE(M38:M46) -> 0.7447300793 | N47: 0.7185 | O47: 0.7452 | P47: 0.7097 | Q47: 0.7478 | R47: =AVERAGE(R38:R46) -> 0.7153920434 | S47: 0.7152 | T47: 0.7256 | U47: 0.7012 | V47: 0.6806 | W47: =AVERAGE(W38:W46) -> 0.6642461428
C48: STD | D48: 0.0289 | E48: 0.0106 | F48: 0.0487 | G48: 0.1223 | H48: =_xlfn.STDEV.S(H38:H46) -> 0.08337433192 | I48: 0.0407 | J48: 0.0079 | K48: 0.0514 | L48: 0.1722 | M48: =_xlfn.STDEV.S(M38:M46) -> 0.1118367055 | N48: 0.04 | O48: 0.0092 | P48: 0.0546 | Q48: 0.231 | R48: =_xlfn.STDEV.S(R38:R46) -> 0.1486650914 | S48: 0.0396 | T48: 0.0163 | U48: 0.0647 | V48: 0.299 | W48: =_xlfn.STDEV.S(W38:W46) -> 0.2169431619
A49: .
A50: .
